[Event "*** SCC Grand Prix: Titled Tuesday Blitz"]
[Site "Chess.com"]
[Date "2020.09.08"]
[Round "3"]
[White "el-roedor"]
[Black "zajka-molotok"]
[Result "0-1"]
[WhiteElo "2558"]
[BlackElo "2388"]
[TimeControl "180+1"]
[EndTime "10:30:26 PDT"]
[Termination "zajka-molotok won on time"]

1. d4 {[%clk 0:03:00.9]} 1... d5 {[%clk 0:02:56.5]} 2. c4 {[%clk 0:03:01.2]}
2... c6 {[%clk 0:02:56.8]} 3. Nf3 {[%clk 0:03:00.8]} 3... dxc4 {[%clk
0:02:55.3]} 4. e3 {[%clk 0:02:58.4]} 4... Be6 {[%clk 0:02:53.5]} 5. a4 {[%clk
0:02:57.9]} 5... Nf6 {[%clk 0:02:47.4]} 6. Na3 {[%clk 0:02:56.5]} 6... Na6
{[%clk 0:02:44.3]} 7. Nxc4 {[%clk 0:02:55.4]} 7... Bf5 {[%clk 0:02:40.1]} 8. Bd2
{[%clk 0:02:51.4]} 8... e6 {[%clk 0:02:38.8]} 9. Nh4 {[%clk 0:02:17]} 9... Be4
{[%clk 0:02:26.4]} 10. f3 {[%clk 0:02:16.9]} 10... Bd5 {[%clk 0:02:25.4]} 11. g3
{[%clk 0:02:09.4]} 11... c5 {[%clk 0:02:22.8]} 12. Ne5 {[%clk 0:02:02.7]} 12...
Bd6 {[%clk 0:02:00.1]} 13. Bb5+ {[%clk 0:01:59]} 13... Kf8 {[%clk 0:01:58.2]}
14. O-O {[%clk 0:01:53.1]} 14... cxd4 {[%clk 0:01:57]} 15. exd4 {[%clk
0:01:52.5]} 15... Nc7 {[%clk 0:01:50.7]} 16. Bd3 {[%clk 0:01:42.9]} 16... Na6
{[%clk 0:01:42.4]} 17. Qe2 {[%clk 0:01:30]} 17... Qb6 {[%clk 0:01:40.3]} 18. Be3
{[%clk 0:01:25.6]} 18... Nb4 {[%clk 0:01:35.2]} 19. Ng2 {[%clk 0:01:11.9]} 19...
Nxd3 {[%clk 0:01:33.4]} 20. Qxd3 {[%clk 0:01:12.8]} 20... Ke7 {[%clk 0:01:27.5]}
21. a5 {[%clk 0:00:50]} 21... Qb3 {[%clk 0:01:24.7]} 22. Qxb3 {[%clk 0:00:44.7]}
22... Bxb3 {[%clk 0:01:25.6]} 23. Rfc1 {[%clk 0:00:40.3]} 23... Rhc8 {[%clk
0:01:23.8]} 24. Bd2 {[%clk 0:00:37.4]} 24... Nd5 {[%clk 0:01:15.4]} 25. Ne3
{[%clk 0:00:35.2]} 25... Nxe3 {[%clk 0:01:05.4]} 26. Bxe3 {[%clk 0:00:36.1]}
26... f6 {[%clk 0:01:03.1]} 27. Nd3 {[%clk 0:00:35.1]} 27... Bd5 {[%clk
0:01:01.9]} 28. Kf2 {[%clk 0:00:33.5]} 28... b6 {[%clk 0:00:55.5]} 29. Bf4
{[%clk 0:00:26.6]} 29... Rxc1 {[%clk 0:00:48.9]} 30. Rxc1 {[%clk 0:00:25.8]}
30... Kd7 {[%clk 0:00:49]} 31. Bxd6 {[%clk 0:00:25.3]} 31... Kxd6 {[%clk
0:00:49.9]} 32. Ra1 {[%clk 0:00:21]} 32... Rc8 {[%clk 0:00:47.6]} 33. axb6
{[%clk 0:00:19.6]} 33... axb6 {[%clk 0:00:48.5]} 34. Rc1 {[%clk 0:00:18.7]}
34... Ra8 {[%clk 0:00:45.8]} 35. Rc2 {[%clk 0:00:18.8]} 35... Ra1 {[%clk
0:00:44.5]} 36. Ke3 {[%clk 0:00:18.5]} 36... h5 {[%clk 0:00:40.7]} 37. h4 {[%clk
0:00:18.2]} 37... g5 {[%clk 0:00:39.8]} 38. hxg5 {[%clk 0:00:16.6]} 38... fxg5
{[%clk 0:00:40.7]} 39. Rh2 {[%clk 0:00:16.5]} 39... Rf1 {[%clk 0:00:36.5]} 40.
Rf2 {[%clk 0:00:14.6]} 40... Rh1 {[%clk 0:00:34.2]} 41. f4 {[%clk 0:00:14.3]}
41... g4 {[%clk 0:00:30.6]} 42. f5 {[%clk 0:00:14]} 42... exf5 {[%clk
0:00:29.6]} 43. Rxf5 {[%clk 0:00:14.1]} 43... h4 {[%clk 0:00:27.8]} 44. gxh4
{[%clk 0:00:13.9]} 44... Rh3+ {[%clk 0:00:25.8]} 45. Kd2 {[%clk 0:00:13.1]}
45... Be4 {[%clk 0:00:21.8]} 46. Rf6+ {[%clk 0:00:11.3]} 46... Ke7 {[%clk
0:00:20.9]} 47. Rxb6 {[%clk 0:00:08.6]} 47... Rxd3+ {[%clk 0:00:19.8]} 48. Ke2
{[%clk 0:00:08.9]} 48... Rh3 {[%clk 0:00:19.1]} 49. b4 {[%clk 0:00:06]} 49... g3
{[%clk 0:00:18.5]} 50. Rb5 {[%clk 0:00:04.6]} 50... g2 {[%clk 0:00:16.8]} 51.
Rg5 {[%clk 0:00:05.5]} 51... Rh1 {[%clk 0:00:15.9]} 52. Kf2 {[%clk 0:00:05.8]}
52... Rf1+ {[%clk 0:00:15.7]} 53. Ke3 {[%clk 0:00:06.1]} 53... g1=Q+ {[%clk
0:00:14]} 54. Rxg1 {[%clk 0:00:05.8]} 54... Rxg1 {[%clk 0:00:14.9]} 55. Kxe4
{[%clk 0:00:06.3]} 55... Rh1 {[%clk 0:00:15]} 56. Kd5 {[%clk 0:00:06.1]} 56...
Rxh4 {[%clk 0:00:14.1]} 57. b5 {[%clk 0:00:06]} 57... Kd7 {[%clk 0:00:14.1]} 58.
Kc5 {[%clk 0:00:06.1]} 58... Kc7 {[%clk 0:00:13.8]} 59. d5 {[%clk 0:00:06.6]}
59... Rh1 {[%clk 0:00:12.8]} 0-1

[Event "*** SCC Grand Prix: Titled Tuesday Blitz"]
[Site "Chess.com"]
[Date "2020.09.08"]
[Round "3"]
[White "juli2512"]
[Black "saraswathii"]
[Result "0-1"]
[WhiteElo "2038"]
[BlackElo "2312"]
[TimeControl "180+1"]
[EndTime "10:30:27 PDT"]
[Termination "saraswathii won by checkmate"]

1. e4 {[%clk 0:03:00.9]} 1... c5 {[%clk 0:02:56.9]} 2. Nf3 {[%clk 0:02:53.7]}
2... Nc6 {[%clk 0:02:43.3]} 3. d3 {[%clk 0:02:53.1]} 3... g6 {[%clk 0:02:39.4]}
4. g3 {[%clk 0:02:53.1]} 4... Bg7 {[%clk 0:02:39.8]} 5. Bg2 {[%clk 0:02:53.3]}
5... Nf6 {[%clk 0:02:40.3]} 6. O-O {[%clk 0:02:53.6]} 6... d5 {[%clk 0:02:40.3]}
7. Nbd2 {[%clk 0:02:43.3]} 7... dxe4 {[%clk 0:02:38.6]} 8. dxe4 {[%clk
0:02:42.3]} 8... O-O {[%clk 0:02:29.2]} 9. Re1 {[%clk 0:02:38.4]} 9... Qc7
{[%clk 0:02:27.2]} 10. c3 {[%clk 0:02:35.3]} 10... Rd8 {[%clk 0:02:23.7]} 11.
Qc2 {[%clk 0:02:35]} 11... Bg4 {[%clk 0:02:13.8]} 12. Nf1 {[%clk 0:02:29.4]}
12... Bxf3 {[%clk 0:02:08.2]} 13. Bxf3 {[%clk 0:02:28.6]} 13... Ne5 {[%clk
0:02:06]} 14. Bg2 {[%clk 0:02:28.2]} 14... Nd3 {[%clk 0:01:55.2]} 15. Rd1 {[%clk
0:02:24.9]} 15... c4 {[%clk 0:01:53.4]} 16. Be3 {[%clk 0:02:10.5]} 16... b5
{[%clk 0:01:47.9]} 17. h3 {[%clk 0:02:01.3]} 17... a6 {[%clk 0:01:46.7]} 18. Rd2
{[%clk 0:01:36.8]} 18... Rac8 {[%clk 0:01:36]} 19. Rad1 {[%clk 0:01:25.7]} 19...
Rd7 {[%clk 0:01:34.5]} 20. Nh2 {[%clk 0:01:11.3]} 20... Rcd8 {[%clk 0:01:32.8]}
21. Bd4 {[%clk 0:01:00.7]} 21... e5 {[%clk 0:01:25.7]} 22. Be3 {[%clk
0:00:55.7]} 22... Qa5 {[%clk 0:01:15.1]} 23. a3 {[%clk 0:00:54.5]} 23... Qc7
{[%clk 0:01:10.4]} 24. Ng4 {[%clk 0:00:51.9]} 24... Ne8 {[%clk 0:01:02.4]} 25.
Nh6+ {[%clk 0:00:45.4]} 25... Kh8 {[%clk 0:00:52.6]} 26. Bf1 {[%clk 0:00:35]}
26... Nf4 {[%clk 0:00:47.2]} 27. Nxf7+ {[%clk 0:00:19.6]} 27... Kg8 {[%clk
0:00:41.7]} 28. Ng5 {[%clk 0:00:15.4]} 28... Rxd2 {[%clk 0:00:32.5]} 29. Rxd2
{[%clk 0:00:14.3]} 29... Nh5 {[%clk 0:00:26.2]} 30. Ne6 {[%clk 0:00:12.7]} 30...
Rxd2 {[%clk 0:00:19]} 31. Qxd2 {[%clk 0:00:13]} 31... Qc6 {[%clk 0:00:18.6]} 32.
Nxg7 {[%clk 0:00:12.7]} 32... Kxg7 {[%clk 0:00:19.5]} 33. Bg2 {[%clk 0:00:12.6]}
33... Nhf6 {[%clk 0:00:19.4]} 34. f3 {[%clk 0:00:12.1]} 34... Nc7 {[%clk
0:00:19.2]} 35. Kf2 {[%clk 0:00:12.3]} 35... Ne6 {[%clk 0:00:19.4]} 36. h4
{[%clk 0:00:11.3]} 36... Nc5 {[%clk 0:00:19.6]} 37. Bf1 {[%clk 0:00:10.5]} 37...
Na4 {[%clk 0:00:18.7]} 38. Be2 {[%clk 0:00:10.3]} 38... Nc5 {[%clk 0:00:18.4]}
39. Qc2 {[%clk 0:00:10]} 39... Na4 {[%clk 0:00:17.7]} 40. Qd2 {[%clk 0:00:09.6]}
40... Nc5 {[%clk 0:00:17.6]} 41. Qd8 {[%clk 0:00:10.1]} 41... Ne6 {[%clk
0:00:16.7]} 42. h5 {[%clk 0:00:09.4]} 42... Nxd8 {[%clk 0:00:16.3]} 43. h6+
{[%clk 0:00:08.9]} 43... Kf7 {[%clk 0:00:16]} 44. Bg5 {[%clk 0:00:08.6]} 44...
Ne6 {[%clk 0:00:15.6]} 45. Be3 {[%clk 0:00:08.2]} 45... Nc5 {[%clk 0:00:15.7]}
46. Bd1 {[%clk 0:00:09.1]} 46... Na4 {[%clk 0:00:15.9]} 47. Ke2 {[%clk
0:00:09.4]} 47... Nxb2 {[%clk 0:00:15.8]} 48. Bc2 {[%clk 0:00:09.3]} 48... Na4
{[%clk 0:00:15.2]} 49. g4 {[%clk 0:00:09.6]} 49... Nxc3+ {[%clk 0:00:15]} 50.
Kf2 {[%clk 0:00:09.1]} 50... Na4 {[%clk 0:00:13.5]} 51. g5 {[%clk 0:00:09.5]}
51... Nd7 {[%clk 0:00:13.7]} 52. f4 {[%clk 0:00:09.5]} 52... Qd6 {[%clk
0:00:13.1]} 53. Kf3 {[%clk 0:00:08.9]} 53... exf4 {[%clk 0:00:13.2]} 54. Bxf4
{[%clk 0:00:08.8]} 54... Qxa3+ {[%clk 0:00:13.8]} 55. Kg4 {[%clk 0:00:08.4]}
55... Nac5 {[%clk 0:00:12.7]} 56. e5 {[%clk 0:00:08.4]} 56... Nd3 {[%clk
0:00:12.9]} 57. Bd1 {[%clk 0:00:07.8]} 57... Nf2+ {[%clk 0:00:12.2]} 58. Kh4
{[%clk 0:00:07.4]} 58... Qh3# {[%clk 0:00:12.1]} 0-1

[Event "*** SCC Grand Prix: Titled Tuesday Blitz"]
[Site "Chess.com"]
[Date "2020.09.08"]
[Round "3"]
[White "j_coca"]
[Black "poummba"]
[Result "0-1"]
[WhiteElo "2328"]
[BlackElo "2533"]
[TimeControl "180+1"]
[EndTime "10:30:28 PDT"]
[Termination "poummba won by resignation"]

1. f4 {[%clk 0:03:00.5]} 1... e5 {[%clk 0:02:57.6]} 2. fxe5 {[%clk 0:02:57.7]}
2... d6 {[%clk 0:02:57.4]} 3. exd6 {[%clk 0:02:58.6]} 3... Bxd6 {[%clk
0:02:57.9]} 4. Nf3 {[%clk 0:02:59]} 4... Nf6 {[%clk 0:02:57.1]} 5. Nc3 {[%clk
0:02:58.1]} 5... Bf5 {[%clk 0:02:50.7]} 6. d3 {[%clk 0:02:57.7]} 6... O-O {[%clk
0:02:48]} 7. e4 {[%clk 0:02:56.7]} 7... Bg4 {[%clk 0:02:45.5]} 8. Be2 {[%clk
0:02:56.7]} 8... Bc5 {[%clk 0:02:37.8]} 9. Bg5 {[%clk 0:02:55.8]} 9... h6 {[%clk
0:02:21.3]} 10. Bh4 {[%clk 0:02:55.4]} 10... Nc6 {[%clk 0:02:10.8]} 11. Qd2
{[%clk 0:02:47.7]} 11... Qd6 {[%clk 0:02:00.5]} 12. Bg3 {[%clk 0:02:37.9]} 12...
Qd7 {[%clk 0:01:54]} 13. h3 {[%clk 0:02:35.3]} 13... Be6 {[%clk 0:01:44.9]} 14.
Ne5 {[%clk 0:02:26]} 14... Nxe5 {[%clk 0:01:44]} 15. Bxe5 {[%clk 0:02:26.9]}
15... Bd4 {[%clk 0:01:30.1]} 16. Bxd4 {[%clk 0:02:23.2]} 16... Qxd4 {[%clk
0:01:31]} 17. O-O-O {[%clk 0:02:21.8]} 17... c6 {[%clk 0:01:14.2]} 18. Rdf1
{[%clk 0:02:08.5]} 18... b5 {[%clk 0:01:14.1]} 19. Kb1 {[%clk 0:02:03.8]} 19...
b4 {[%clk 0:01:07.2]} 20. Nd1 {[%clk 0:02:03.3]} 20... Nxe4 {[%clk 0:01:06]} 21.
Qe1 {[%clk 0:01:50.4]} 21... Nf6 {[%clk 0:00:59.9]} 22. g3 {[%clk 0:01:39.1]}
22... Bd5 {[%clk 0:00:57]} 23. Rhg1 {[%clk 0:01:34.2]} 23... Rfe8 {[%clk
0:00:57.2]} 24. Qf2 {[%clk 0:01:27.4]} 24... Qxf2 {[%clk 0:00:55]} 25. Rxf2
{[%clk 0:01:28.3]} 25... Re7 {[%clk 0:00:48.4]} 26. c4 {[%clk 0:01:15.2]} 26...
bxc3 {[%clk 0:00:46.2]} 27. Nxc3 {[%clk 0:01:15.5]} 27... Rae8 {[%clk
0:00:45.2]} 28. g4 {[%clk 0:01:13.9]} 28... Nd7 {[%clk 0:00:33.9]} 29. g5 {[%clk
0:01:10.3]} 29... hxg5 {[%clk 0:00:26.7]} 30. Rxg5 {[%clk 0:01:11.2]} 30... Re5
{[%clk 0:00:23.5]} 31. Rg1 {[%clk 0:00:53.6]} 31... Re3 {[%clk 0:00:14.4]} 32.
Bg4 {[%clk 0:00:49.3]} 32... Ne5 {[%clk 0:00:10.8]} 33. d4 {[%clk 0:00:41.8]}
33... Nxg4 {[%clk 0:00:03.6]} 34. Rxg4 {[%clk 0:00:42.7]} 34... Rxh3 {[%clk
0:00:02.9]} 35. Kc2 {[%clk 0:00:36]} 35... g6 {[%clk 0:00:03.1]} 36. Rgf4 {[%clk
0:00:35.1]} 36... Re7 {[%clk 0:00:02.7]} 37. Rf6 {[%clk 0:00:34.5]} 37... Kg7
{[%clk 0:00:02.4]} 38. Rd6 {[%clk 0:00:34.2]} 38... Rh4 {[%clk 0:00:02.7]} 39.
Nxd5 {[%clk 0:00:33.3]} 39... cxd5 {[%clk 0:00:03.6]} 40. Rxd5 {[%clk
0:00:33.2]} 40... Ree4 {[%clk 0:00:04]} 41. Kd3 {[%clk 0:00:31.9]} 41... Ref4
{[%clk 0:00:03.4]} 42. Re2 {[%clk 0:00:30.7]} 42... Rh3+ {[%clk 0:00:03]} 43.
Kc4 {[%clk 0:00:31]} 43... Rhh4 {[%clk 0:00:02.1]} 44. Re7 {[%clk 0:00:28.6]}
44... a5 {[%clk 0:00:02.3]} 45. Ra7 {[%clk 0:00:27.4]} 45... Rf2 {[%clk
0:00:02.6]} 46. Raxa5 {[%clk 0:00:25.4]} 46... Rxb2 {[%clk 0:00:02.1]} 47. Rd7
{[%clk 0:00:25]} 47... Rc2+ {[%clk 0:00:02.1]} 48. Kb3 {[%clk 0:00:25]} 48...
Rf2 {[%clk 0:00:01.9]} 49. Raa7 {[%clk 0:00:24.1]} 49... Rhh2 {[%clk 0:00:02.2]}
50. a4 {[%clk 0:00:23.5]} 50... g5 {[%clk 0:00:02.6]} 51. a5 {[%clk 0:00:22.9]}
51... g4 {[%clk 0:00:03.1]} 52. a6 {[%clk 0:00:22.3]} 52... g3 {[%clk
0:00:03.5]} 53. Kc4 {[%clk 0:00:20.1]} 53... g2 {[%clk 0:00:03.9]} 54. Ra8
{[%clk 0:00:18.7]} 54... g1=Q {[%clk 0:00:03.8]} 55. Rdd8 {[%clk 0:00:19.6]}
55... Qc1+ {[%clk 0:00:03.8]} 56. Kd5 {[%clk 0:00:19.3]} 56... Rh5+ {[%clk
0:00:03.5]} 57. Kd6 {[%clk 0:00:18.4]} 57... Rf6+ {[%clk 0:00:03.7]} 58. Ke7
{[%clk 0:00:17.9]} 58... Qa3+ {[%clk 0:00:03.8]} 59. Ke8 {[%clk 0:00:16.9]}
59... Rh8+ {[%clk 0:00:03.6]} 60. Kd7 {[%clk 0:00:17.2]} 60... Rd6+ {[%clk
0:00:04]} 61. Kc7 {[%clk 0:00:16.8]} 61... Rhxd8 {[%clk 0:00:04.7]} 62. Rxd8
{[%clk 0:00:16.5]} 62... Rxd8 {[%clk 0:00:05.3]} 63. Kxd8 {[%clk 0:00:17.4]}
63... Qxa6 {[%clk 0:00:05.7]} 0-1

[Event "*** SCC Grand Prix: Titled Tuesday Blitz"]
[Site "Chess.com"]
[Date "2020.09.08"]
[Round "3"]
[White "Zmof"]
[Black "willc-h99"]
[Result "1-0"]
[WhiteElo "2228"]
[BlackElo "2424"]
[TimeControl "180+1"]
[EndTime "10:30:30 PDT"]
[Termination "Zmof won on time"]

1. e4 {[%clk 0:02:03.1]} 1... d5 {[%clk 0:02:28.6]} 2. exd5 {[%clk 0:02:02.8]}
2... Qxd5 {[%clk 0:02:29.5]} 3. Nc3 {[%clk 0:02:03]} 3... Qd6 {[%clk 0:02:30]}
4. d4 {[%clk 0:02:01.3]} 4... Nf6 {[%clk 0:02:30.3]} 5. Nf3 {[%clk 0:02:01.1]}
5... c6 {[%clk 0:02:30.4]} 6. g3 {[%clk 0:02:00.9]} 6... Bg4 {[%clk 0:02:30.5]}
7. Bg2 {[%clk 0:02:00.4]} 7... e6 {[%clk 0:02:31]} 8. O-O {[%clk 0:01:59.9]}
8... Qc7 {[%clk 0:02:30.6]} 9. Bf4 {[%clk 0:01:59.8]} 9... Bd6 {[%clk
0:02:30.4]} 10. Bxd6 {[%clk 0:01:59.7]} 10... Qxd6 {[%clk 0:02:31.3]} 11. h3
{[%clk 0:01:57.8]} 11... Bxf3 {[%clk 0:02:28.2]} 12. Bxf3 {[%clk 0:01:57.7]}
12... Nbd7 {[%clk 0:02:29]} 13. Ne4 {[%clk 0:01:54]} 13... Nxe4 {[%clk
0:02:16.3]} 14. Bxe4 {[%clk 0:01:54.9]} 14... Nf6 {[%clk 0:02:14.5]} 15. Bg2
{[%clk 0:01:53.9]} 15... O-O {[%clk 0:02:13]} 16. c3 {[%clk 0:01:53.5]} 16... a5
{[%clk 0:02:11.5]} 17. Qb3 {[%clk 0:01:49.9]} 17... Qc7 {[%clk 0:02:07.8]} 18.
a4 {[%clk 0:01:49]} 18... Ra6 {[%clk 0:02:05.6]} 19. Rfe1 {[%clk 0:01:44.9]}
19... Rb6 {[%clk 0:02:05]} 20. Qc2 {[%clk 0:01:45.2]} 20... Rd8 {[%clk
0:02:02.2]} 21. Re5 {[%clk 0:01:44]} 21... Nd5 {[%clk 0:01:52.4]} 22. Rae1
{[%clk 0:01:40.6]} 22... h6 {[%clk 0:01:40.4]} 23. Qe2 {[%clk 0:01:28]} 23...
Rb3 {[%clk 0:01:30]} 24. Qd2 {[%clk 0:01:14.5]} 24... Qb6 {[%clk 0:01:27.6]} 25.
R1e2 {[%clk 0:01:14.7]} 25... Nc7 {[%clk 0:01:06]} 26. Be4 {[%clk 0:01:12.3]}
26... f6 {[%clk 0:01:01.9]} 27. Rh5 {[%clk 0:01:11.8]} 27... Ne8 {[%clk
0:00:44.8]} 28. Bb1 {[%clk 0:01:10.6]} 28... c5 {[%clk 0:00:35.4]} 29. Ba2
{[%clk 0:01:08.6]} 29... cxd4 {[%clk 0:00:29.6]} 30. Bxb3 {[%clk 0:01:08.4]}
30... Qxb3 {[%clk 0:00:29.5]} 31. cxd4 {[%clk 0:00:58.1]} 31... Qxa4 {[%clk
0:00:29]} 32. Rxe6 {[%clk 0:00:51.8]} 32... Nc7 {[%clk 0:00:25.8]} 33. Re4
{[%clk 0:00:46]} 33... Nd5 {[%clk 0:00:19]} 34. Kh2 {[%clk 0:00:35.9]} 34... Qc6
{[%clk 0:00:19]} 35. Re2 {[%clk 0:00:33.1]} 35... b6 {[%clk 0:00:18.7]} 36. Qd3
{[%clk 0:00:31.6]} 36... Nb4 {[%clk 0:00:16.3]} 37. Qg6 {[%clk 0:00:31.3]} 37...
Qc1 {[%clk 0:00:14.8]} 38. Re8+ {[%clk 0:00:27.5]} 38... Rxe8 {[%clk 0:00:14.3]}
39. Qxe8+ {[%clk 0:00:28.2]} 39... Kh7 {[%clk 0:00:15.2]} 40. Qe4+ {[%clk
0:00:28.5]} 40... Kg8 {[%clk 0:00:15.1]} 41. Rb5 {[%clk 0:00:26.5]} 41... Qxb2
{[%clk 0:00:13.9]} 42. Rxb6 {[%clk 0:00:26]} 42... Qxf2+ {[%clk 0:00:13.9]} 43.
Qg2 {[%clk 0:00:24.5]} 43... Qxd4 {[%clk 0:00:14.3]} 44. Rb8+ {[%clk 0:00:23.1]}
44... Kh7 {[%clk 0:00:14.1]} 45. Ra8 {[%clk 0:00:21.3]} 45... Qe5 {[%clk
0:00:11.2]} 46. Qd2 {[%clk 0:00:17.5]} 46... h5 {[%clk 0:00:07.8]} 47. Qd1
{[%clk 0:00:14.3]} 47... h4 {[%clk 0:00:07.7]} 48. Qf3 {[%clk 0:00:12.1]} 48...
hxg3+ {[%clk 0:00:05.9]} 49. Qxg3 {[%clk 0:00:11.3]} 49... Qe2+ {[%clk
0:00:06.2]} 50. Qg2 {[%clk 0:00:11.9]} 50... Qe5+ {[%clk 0:00:06.3]} 51. Kh1
{[%clk 0:00:12]} 51... Qe1+ {[%clk 0:00:05.6]} 52. Kh2 {[%clk 0:00:11.8]} 52...
Qe5+ {[%clk 0:00:05.8]} 53. Kg1 {[%clk 0:00:12.1]} 53... Qe1+ {[%clk 0:00:04.2]}
54. Qf1 {[%clk 0:00:11.6]} 54... Qe3+ {[%clk 0:00:03.9]} 55. Qf2 {[%clk
0:00:12.3]} 55... Qe4 {[%clk 0:00:03.5]} 56. Rd8 {[%clk 0:00:09.4]} 56... Qb1+
{[%clk 0:00:02.4]} 57. Kh2 {[%clk 0:00:08.6]} 57... Qe4 {[%clk 0:00:02.4]} 58.
Rd4 {[%clk 0:00:08.6]} 58... Qe5+ {[%clk 0:00:02]} 59. Kg2 {[%clk 0:00:06.9]}
1-0

[Event "*** SCC Grand Prix: Titled Tuesday Blitz"]
[Site "Chess.com"]
[Date "2020.09.08"]
[Round "3"]
[White "azikom"]
[Black "exoticprincess"]
[Result "0-1"]
[WhiteElo "2639"]
[BlackElo "2883"]
[TimeControl "180+1"]
[EndTime "10:30:36 PDT"]
[Termination "exoticprincess won on time"]

1. d4 {[%clk 0:02:59.1]} 1... d5 {[%clk 0:02:57.4]} 2. Nf3 {[%clk 0:02:57.3]}
2... c6 {[%clk 0:02:56.5]} 3. e3 {[%clk 0:02:56.1]} 3... Nf6 {[%clk 0:02:56.1]}
4. c4 {[%clk 0:02:56.5]} 4... Bf5 {[%clk 0:02:55.7]} 5. cxd5 {[%clk 0:02:53.4]}
5... cxd5 {[%clk 0:02:55.1]} 6. Qb3 {[%clk 0:02:49]} 6... Qc7 {[%clk 0:02:52.3]}
7. Bb5+ {[%clk 0:02:42.6]} 7... Nc6 {[%clk 0:02:47.8]} 8. Bd2 {[%clk 0:02:42.5]}
8... e6 {[%clk 0:02:46.6]} 9. O-O {[%clk 0:02:37.8]} 9... Bd6 {[%clk 0:02:45.9]}
10. Bb4 {[%clk 0:02:36.8]} 10... O-O {[%clk 0:02:39.9]} 11. Bxd6 {[%clk
0:02:33.5]} 11... Qxd6 {[%clk 0:02:40.8]} 12. Nbd2 {[%clk 0:02:28.2]} 12... Rfc8
{[%clk 0:02:39.1]} 13. Rfc1 {[%clk 0:02:27]} 13... Ne7 {[%clk 0:02:36.3]} 14. h3
{[%clk 0:02:24.4]} 14... h6 {[%clk 0:02:35.9]} 15. Be2 {[%clk 0:02:22.8]} 15...
Rc7 {[%clk 0:02:24.6]} 16. Rxc7 {[%clk 0:02:10.9]} 16... Qxc7 {[%clk 0:02:23.7]}
17. Qa3 {[%clk 0:02:11.4]} 17... a5 {[%clk 0:01:41]} 18. Nb3 {[%clk 0:02:07.5]}
18... b6 {[%clk 0:01:39.9]} 19. Rc1 {[%clk 0:02:04.9]} 19... Qd8 {[%clk
0:01:37.3]} 20. Ne5 {[%clk 0:02:01.8]} 20... Nd7 {[%clk 0:01:19.3]} 21. Qd6
{[%clk 0:01:51.4]} 21... Nxe5 {[%clk 0:01:16.4]} 22. Qxd8+ {[%clk 0:01:50.1]}
22... Rxd8 {[%clk 0:01:13.9]} 23. dxe5 {[%clk 0:01:51]} 23... Rc8 {[%clk
0:01:13.6]} 24. Rxc8+ {[%clk 0:01:48.5]} 24... Nxc8 {[%clk 0:01:14.5]} 25. Nd4
{[%clk 0:01:48.6]} 25... Bb1 {[%clk 0:01:14]} 26. a3 {[%clk 0:01:47.8]} 26...
Kf8 {[%clk 0:01:14.2]} 27. f4 {[%clk 0:01:46.9]} 27... Ke7 {[%clk 0:01:13.4]}
28. Kf2 {[%clk 0:01:47]} 28... Na7 {[%clk 0:01:11.5]} 29. h4 {[%clk 0:01:45.6]}
29... Be4 {[%clk 0:01:09.4]} 30. g3 {[%clk 0:01:44.7]} 30... f6 {[%clk
0:01:06.4]} 31. exf6+ {[%clk 0:01:41.7]} 31... gxf6 {[%clk 0:01:05.9]} 32. Bf3
{[%clk 0:01:27.7]} 32... f5 {[%clk 0:00:58.9]} 33. g4 {[%clk 0:01:25.2]} 33...
Kf6 {[%clk 0:00:38.7]} 34. g5+ {[%clk 0:01:14.9]} 34... hxg5 {[%clk 0:00:38.2]}
35. hxg5+ {[%clk 0:01:14.4]} 35... Ke7 {[%clk 0:00:35.4]} 36. Bxe4 {[%clk
0:01:06.9]} 36... dxe4 {[%clk 0:00:34.1]} 37. Kg3 {[%clk 0:01:06]} 37... Nc8
{[%clk 0:00:33.9]} 38. Kh4 {[%clk 0:00:55.9]} 38... Kf7 {[%clk 0:00:33.9]} 39.
Kh5 {[%clk 0:00:53.6]} 39... Ne7 {[%clk 0:00:33.8]} 40. a4 {[%clk 0:00:45.3]}
40... Nd5 {[%clk 0:00:31.7]} 41. Kh6 {[%clk 0:00:36.3]} 41... Kg8 {[%clk
0:00:29.9]} 42. Nc2 {[%clk 0:00:28.1]} 42... Ne7 {[%clk 0:00:25.8]} 43. g6
{[%clk 0:00:19.6]} 43... Nd5 {[%clk 0:00:25.6]} 44. b3 {[%clk 0:00:19.4]} 44...
Nf6 {[%clk 0:00:25.1]} 45. Kg5 {[%clk 0:00:16.8]} 45... Nd5 {[%clk 0:00:24.2]}
46. Kh6 {[%clk 0:00:16.4]} 46... Nf6 {[%clk 0:00:23.9]} 47. Kg5 {[%clk
0:00:15.9]} 47... Ng4 {[%clk 0:00:23.8]} 48. Kh5 {[%clk 0:00:10]} 48... Kg7
{[%clk 0:00:22.8]} 49. Kg5 {[%clk 0:00:10.2]} 49... Kg8 {[%clk 0:00:20.8]} 50.
Kh5 {[%clk 0:00:09.9]} 50... Kf8 {[%clk 0:00:19.1]} 51. Kg5 {[%clk 0:00:09.6]}
51... Kg7 {[%clk 0:00:19.1]} 52. Nd4 {[%clk 0:00:08.9]} 52... Nxe3 {[%clk
0:00:18.2]} 53. Nxe6+ {[%clk 0:00:08.5]} 53... Kg8 {[%clk 0:00:18.6]} 54. Kf6
{[%clk 0:00:08.8]} 54... Nc2 {[%clk 0:00:11.7]} 55. Kxf5 {[%clk 0:00:08]} 55...
e3 {[%clk 0:00:11.7]} 56. Kf6 {[%clk 0:00:01.9]} 56... e2 {[%clk 0:00:11.3]} 0-1